bitfinex/quotes_BTCUSD_20230103
["timestamp","ask_amount","ask_price","bid_price","bid_amount"]
[1672727123440,0.81169489,16772.0,16771.0,2.86302976]
[1672727124937,0.00596268,16772.0,16771.0,2.86302976]
[1672727125699,0.00596268,16772.0,16771.0,2.24859576]
[1672727126451,0.00596268,16772.0,16771.0,2.2485356]
[1672727128529,0.00596268,16772.0,16771.0,1.5485356]
[1672727129278,0.30596268,16772.0,16771.0,1.52468049]
[1672727129521,0.00596268,16772.0,16771.0,2.18534568]
[1672727133031,0.30596268,16772.0,16771.0,2.11268677]
[1672727133242,0.8428558,16772.0,16771.0,1.52468049]
[1672727134000,0.8428558,16772.0,16771.0,2.11309078]
[1672727134508,0.30596268,16772.0,16771.0,2.11309078]
[1672727134756,0.8428558,16772.0,16771.0,2.11309078]
[1672727134998,0.8428558,16772.0,16771.0,1.52468049]
[1672727135255,0.8428558,16772.0,16771.0,0.82468049]
[1672727136229,0.8428558,16772.0,16771.0,0.82486784]
[1672727136510,0.8428558,16772.0,16771.0,1.52468049]
[1672727137494,0.8428558,16772.0,16771.0,2.11360582]
[1672727138246,0.8427619,16772.0,16771.0,1.52468049]
[1672727139518,0.8427619,16772.0,16771.0,2.11356295]
[1672727140022,0.5428558,16772.0,16771.0,2.11356295]
[1672727140266,0.8428558,16772.0,16771.0,2.11356295]
[1672727140758,0.5428558,16772.0,16771.0,2.11356295]
[1672727141256,0.00596268,16772.0,16771.0,2.11356295]
[1672727144762,0.30596268,16772.0,16771.0,2.11356295]
[1672727145619,0.8428558,16772.0,16771.0,2.11356295]
[1672727146376,0.8428558,16772.0,16771.0,1.52468049]
[1672727146640,0.8428558,16772.0,16771.0,2.11302943]
[1672727147642,0.30596268,16772.0,16771.0,2.11302943]
[1672727148218,0.00596268,16772.0,16771.0,2.11302943]
[1672727150407,0.5428558,16772.0,16771.0,2.11302943]
[1672727150857,0.00596268,16772.0,16771.0,2.11302943]
[1672727152569,0.5428558,16772.0,16771.0,2.11302943]
[1672727155043,0.8428558,16772.0,16771.0,2.11302943]
[1672727155298,0.5428558,16772.0,16771.0,2.11302943]
[1672727155543,0.5428558,16772.0,16771.0,1.41302943]
[1672727156633,0.00596268,16772.0,16771.0,2.11302943]
[1672727158168,0.00596268,16772.0,16771.0,1.52468049]
[1672727158169,0.8428558,16772.0,16771.0,1.52468049]
[1672727158491,0.8428558,16772.0,16771.0,1.52459957]
[1672727158695,0.8428558,16772.0,16771.0,2.11339412]
[1672727159734,0.8882888,16772.0,16771.0,1.52459957]
[1672727159987,0.35139568,16772.0,16771.0,1.52459957]
[1672727160499,0.88872407,16772.0,16771.0,1.52459957]
[1672727160746,0.88872407,16772.0,16771.0,2.11374375]
[1672727160963,0.84329107,16772.0,16771.0,2.11374375]
[1672727163298,0.84329107,16772.0,16771.0,2.1139311]
[1672727166807,0.54329107,16772.0,16771.0,2.1139311]
[1672727169381,0.84329107,16772.0,16771.0,2.1139311]
[1672727170901,0.54329107,16772.0,16771.0,2.1139311]
[1672727174028,0.54329107,16772.0,16771.0,1.4139311]
[1672727174263,0.84329107,16772.0,16771.0,1.41374375]
[1672727175034,0.84329107,16772.0,16771.0,2.11374375]
[1672727176328,0.54329107,16772.0,16771.0,2.1139311]
[1672727176850,0.84329107,16772.0,16771.0,2.1139311]
[1672727177663,0.54329107,16772.0,16771.0,2.1139311]
[1672727179410,0.54329107,16772.0,16771.0,2.11374375]
[1672727179912,0.84329107,16772.0,16771.0,2.11374375]
[1672727180922,0.84329107,16772.0,16771.0,1.41374375]
[1672727181656,0.84329107,16772.0,16771.0,0.82459957]
[1672727181937,0.84329107,16772.0,16771.0,1.52459957]
[1672727182190,0.54329107,16772.0,16771.0,2.72742226]
[1672727182958,0.54329107,16772.0,16771.0,2.72735049]
[1672727184024,0.84329107,16772.0,16771.0,2.72685203]
[1672727184221,0.54329107,16772.0,16771.0,2.72685203]
[1672727185797,0.54329107,16772.0,16771.0,2.71838593]
[1672727186056,0.54329107,16772.0,16771.0,2.73907534]
[1672727186320,0.84329107,16772.0,16771.0,1.53675111]
[1672727188891,0.84329107,16772.0,16771.0,2.12552783]
[1672727189141,0.84329107,16772.0,16771.0,2.12552794]
[1672727189901,0.54329107,16772.0,16771.0,2.12552794]
[1672727191602,0.54329107,16772.0,16771.0,2.12540612]
[1672727191873,0.54329107,16772.0,16771.0,1.53675111]
[1672727192129,0.54329107,16772.0,16771.0,0.83675111]
[1672727192642,0.84329107,16772.0,16771.0,0.83675111]
[1672727193192,0.84329107,16772.0,16771.0,2.12553362]
[1672727193444,0.54329107,16772.0,16771.0,2.12553362]
[1672727193687,0.54329107,16772.0,16771.0,2.73996762]
[1672727196971,0.00596268,16772.0,16771.0,2.73996762]
[1672727198264,0.00588046,16772.0,16771.0,2.73996762]
[1672727201823,0.00588046,16772.0,16771.0,2.15118511]
[1672727202611,0.00588046,16772.0,16771.0,2.85229205]
[1672727204345,0.00088046,16772.0,16771.0,2.15229205]
[1672727205331,0.00088046,16772.0,16771.0,2.85229205]
[1672727206337,0.4486048,16772.0,16771.0,2.85229205]
[1672727206594,0.00088046,16772.0,16771.0,2.85229205]
[1672727207107,0.44860333,16772.0,16771.0,2.85229205]
[1672727209071,0.44856277,16772.0,16771.0,2.85229205]
[1672727209321,0.00088046,16772.0,16771.0,2.85229205]
[1672727211412,0.00088046,16772.0,16771.0,3.35229205]
[1672727211934,0.44854967,16772.0,16771.0,3.35229205]
[1672727212190,0.44854967,16772.0,16771.0,2.80300032]
[1672727212427,0.44854967,16772.0,16771.0,2.18856632]
[1672727212692,0.80667605,16772.0,16771.0,2.23267956]
[1672727212931,1.07522124,16772.0,16771.0,2.83293887]
[1672727213171,0.62755203,16772.0,16771.0,2.23267956]
[1672727213414,0.62755203,16772.0,16771.0,2.89325077]
[1672727214443,0.62755203,16772.0,16771.0,3.48951777]
[1672727214707,0.26942565,16772.0,16771.0,2.98894656]
[1672727215227,0.00088046,16772.0,16771.0,3.58521356]
[1672727216127,0.00088046,16772.0,16771.0,3.59371356]
[1672727218269,0.00088046,16772.0,16771.0,4.13447507]
[1672727218519,0.26942565,16772.0,16771.0,3.59371356]
[1672727219251,0.00088046,16772.0,16771.0,3.59371356]
[1672727219509,0.00088046,16772.0,16771.0,4.29598641]
[1672727219776,0.00088046,16772.0,16771.0,3.59371356]
[1672727221275,0.00088046,16772.0,16771.0,4.158804]
[1672727221770,0.00088046,16772.0,16771.0,3.47626484]
[1672727222011,0.00088046,16772.0,16771.0,2.89371356]
[1672727222258,0.00088046,16772.0,16771.0,3.39371356]
[1672727222496,0.00088046,16772.0,16771.0,4.01392227]
[1672727222763,0.00088046,16772.0,16771.0,3.39371356]
[1672727223003,0.00088046,16772.0,16771.0,4.09371356]
[1672727223250,0.00088046,16772.0,16771.0,4.63689392]
[1672727224023,0.00088046,16772.0,16771.0,4.09371356]
[1672727226777,0.00088046,16772.0,16771.0,5.54221356]
[1672727227285,0.00088046,16772.0,16771.0,5.70201356]
[1672727228663,0.00088046,16772.0,16771.0,6.32931356]
[1672727228868,0.01452328,16775.0,16772.0,1.1273]
[1672727229127,0.01452328,16775.0,16774.0,0.3192]
[1672727229376,0.02048489,16775.0,16774.0,2.1300597]
[1672727229626,0.02048489,16775.0,16774.0,1.433634]
[1672727229881,0.01795195,16780.0,16775.0,0.5]
[1672727230139,0.59601,16779.0,16776.0,1.57456574]
[1672727230433,0.59601,16779.0,16777.0,1.33450918]
[1672727230692,0.59601,16779.0,16778.0,0.72054637]
[1672727230949,0.59601,16779.0,16777.0,0.24006002]
[1672727230950,0.00596055,16778.0,16777.0,0.24006002]
[1672727231172,0.60197855,16778.0,16777.0,0.7]
[1672727231506,0.60197855,16778.0,16777.0,0.71]
[1672727231756,0.60197855,16778.0,16777.0,1.38179008]
[1672727231998,0.62697855,16778.0,16777.0,1.39079008]
[1672727233267,0.92697855,16778.0,16777.0,1.39079008]
[1672727234306,1.52299655,16778.0,16777.0,1.39079008]
[1672727235313,1.56842955,16778.0,16777.0,1.39079008]
[1672727235851,2.10433074,16778.0,16777.0,1.39079008]
[1672727236625,2.05889774,16778.0,16777.0,1.39079008]
[1672727239151,2.05889774,16778.0,16777.0,0.709]
[1672727242190,1.52299655,16778.0,16777.0,0.709]
[1672727242451,1.88712955,16778.0,16777.0,0.709]
[1672727242670,2.78712955,16778.0,16777.0,0.709]
[1672727242945,3.08712955,16778.0,16777.0,0.709]
[1672727243195,2.78712955,16778.0,16777.0,0.709]
[1672727243757,3.38998598,16778.0,16777.0,0.709]
[1672727244246,1.88712955,16778.0,16777.0,0.709]
[1672727245766,2.48998598,16778.0,16777.0,0.709]
[1672727248303,3.38998598,16778.0,16777.0,0.709]
[1672727248549,2.48998598,16778.0,16777.0,0.709]
[1672727248804,1.88712955,16778.0,16777.0,0.709]
[1672727249058,1.96337837,16778.0,16777.0,0.709]
[1672727249313,1.91794537,16778.0,16777.0,0.709]
[1672727250063,1.91794537,16778.0,16777.0,1.26028612]
[1672727250829,2.21794537,16778.0,16777.0,1.26028612]
[1672727251337,2.05924537,16778.0,16777.0,1.2601755]
[1672727252863,1.52299655,16778.0,16777.0,1.2601755]
[1672727253877,2.05961275,16778.0,16777.0,1.2601755]
[1672727254390,1.75961275,16778.0,16777.0,1.2601755]
[1672727257235,2.05961275,16778.0,16777.0,1.2601755]
[1672727258308,1.52299655,16778.0,16777.0,1.2601755]
[1672727258513,2.0596438,16778.0,16777.0,1.2601755]
[1672727259055,1.7596438,16778.0,16777.0,1.2601755]
[1672727261109,1.1636258,16778.0,16777.0,1.2601755]
[1672727261350,0.62697855,16778.0,16777.0,1.2601755]
[1672727261603,0.03096055,16778.0,16777.0,1.2601755]
[1672727262864,0.5676078,16778.0,16777.0,1.2601755]
[1672727263115,0.03096055,16778.0,16777.0,1.2601755]
[1672727264115,0.83599417,16778.0,16777.0,2.96449614]
[1672727267405,0.38875327,16778.0,16777.0,2.96449614]
[1672727267655,0.83599417,16778.0,16777.0,2.96449614]
[1672727267898,0.38875327,16778.0,16777.0,2.96449614]
[1672727268152,0.83599417,16778.0,16777.0,2.96449614]
[1672727269381,0.36375327,16778.0,16777.0,2.95549614]
[1672727269628,0.36375327,16778.0,16777.0,3.00649614]
[1672727270627,0.81099417,16778.0,16777.0,3.00649614]
[1672727271369,0.36375327,16778.0,16777.0,3.00649614]
[1672727272854,0.00596055,16778.0,16777.0,3.00649614]
[1672727275886,0.00596055,16778.0,16777.0,3.00642056]
[1672727277623,0.00596055,16778.0,16777.0,2.50642056]
[1672727277864,0.36375327,16778.0,16777.0,1.89198656]
[1672727278609,0.00596055,16778.0,16777.0,1.89198656]
[1672727278864,0.36375327,16778.0,16777.0,2.50642056]
[1672727281578,0.00596055,16778.0,16777.0,2.50642056]
[1672727282826,0.00596055,16778.0,16777.0,1.89198656]
[1672727283578,0.36375327,16778.0,16777.0,1.89198656]
[1672727284083,0.36375327,16778.0,16777.0,1.30209992]
[1672727285126,0.36375327,16778.0,16777.0,1.46145112]
[1672727285647,0.3635943,16778.0,16777.0,1.46145112]
[1672727287396,0.8108352,16778.0,16777.0,1.46145112]
[1672727291166,0.8108352,16778.0,16777.0,0.76163732]
[1672727291974,0.81074345,16778.0,16777.0,0.76163732]
[1672727292189,0.81074345,16778.0,16777.0,1.46163732]
[1672727293931,0.81074345,16778.0,16777.0,2.07607132]
[1672727295437,0.81074345,16778.0,16777.0,1.46163732]
[1672727297461,0.45320145,16778.0,16777.0,1.46163732]
[1672727297708,0.45320145,16778.0,16777.0,2.07607132]
[1672727297958,0.45320145,16778.0,16777.0,1.37607132]
[1672727299001,0.45320145,16778.0,16777.0,2.07607132]
[1672727299763,0.45320145,16778.0,16777.0,2.07449136]
[1672727300015,0.8111805,16778.0,16777.0,2.07449136]
[1672727300791,0.7918805,16778.0,16777.0,2.07449136]
[1672727302669,0.7918805,16778.0,16777.0,1.46005736]
[1672727303692,0.43390145,16778.0,16777.0,1.46005736]
[1672727304957,0.43390145,16778.0,16777.0,0.76005736]
[1672727305466,0.79200703,16778.0,16777.0,0.76005736]
[1672727306004,0.79200703,16778.0,16777.0,2.07449136]
[1672727307534,0.43390145,16778.0,16777.0,2.07449136]
[1672727308041,0.79199003,16778.0,16777.0,2.07449136]
[1672727308631,0.43390145,16778.0,16777.0,2.07449136]
[1672727311190,0.79199279,16778.0,16777.0,2.07449136]
[1672727311394,0.43390145,16778.0,16777.0,2.07449136]
[1672727312135,0.43390145,16778.0,16777.0,1.37449136]
[1672727312392,0.43390145,16778.0,16777.0,0.76005736]
[1672727313147,0.43390145,16778.0,16777.0,1.46005736]
[1672727314207,0.43390145,16778.0,16777.0,2.07449136]
[1672727314711,0.45790145,16778.0,16777.0,2.07449136]
[1672727319646,0.45790145,16778.0,16777.0,1.46005736]
[1672727319647,0.02996055,16778.0,16777.0,1.46005736]
[1672727320426,0.02996055,16778.0,16777.0,2.07449136]
[1672727321450,0.02996055,16778.0,16777.0,1.46005736]
[1672727322206,0.47762865,16778.0,16777.0,1.45463065]
[1672727324268,0.02996055,16778.0,16777.0,1.45463065]
[1672727326283,0.47763125,16778.0,16777.0,0.75463065]
[1672727326533,0.47763196,16778.0,16777.0,0.75463065]
[1672727327033,0.02996055,16778.0,16777.0,0.75463065]
[1672727327307,0.02996055,16778.0,16777.0,1.45463065]
[1672727329136,0.47764986,16778.0,16777.0,2.06906465]
[1672727331435,0.47764986,16778.0,16777.0,1.45463065]
[1672727333418,0.47764986,16778.0,16777.0,0.75463065]
[1672727334404,0.47764986,16778.0,16777.0,1.45463065]
[1672727340338,0.47764986,16778.0,16777.0,0.75463065]
[1672727341141,0.83580075,16778.0,16777.0,0.75463065]
[1672727341393,0.83580075,16778.0,16777.0,1.45463065]
[1672727343135,0.47764986,16778.0,16777.0,1.45463065]
[1672727343905,0.83579171,16778.0,16777.0,1.45463065]
[1672727344154,0.83579171,16778.0,16777.0,1.45451542]
[1672727348117,0.47764986,16778.0,16777.0,1.45451542]
[1672727348633,0.83579083,16778.0,16777.0,1.45451542]
[1672727348872,0.83579083,16778.0,16777.0,0.75451542]
[1672727348873,0.83578989,16778.0,16777.0,0.75451542]
[1672727349865,0.83578989,16778.0,16777.0,1.45451542]
[1672727351358,0.83577992,16778.0,16777.0,1.45451542]
[1672727354117,0.47764986,16778.0,16777.0,1.45451542]
[1672727354617,0.83577362,16778.0,16777.0,1.45451542]
[1672727355872,0.83577362,16778.0,16777.0,0.75451542]
[1672727357154,0.83577362,16778.0,16777.0,1.45451542]
[1672727363048,0.83577362,16778.0,16777.0,0.75451542]
[1672727364079,0.83577362,16778.0,16777.0,1.45451542]
[1672727365820,0.53664725,16780.0,16777.0,1.15041122]
[1672727366067,0.53664725,16780.0,16779.0,0.1597]
[1672727366068,0.44761625,16780.0,16779.0,0.1597]
[1672727366320,0.44758111,16781.0,16780.0,1.20827902]
[1672727366571,0.44758111,16782.0,16780.0,2.26338264]
[1672727366823,0.44758111,16782.0,16781.0,1.36402262]
[1672727367349,1.13293034,16784.0,16781.0,2.06402262]
[1672727367350,0.44758111,16783.0,16781.0,2.06402262]
[1672727367596,0.00595913,16782.0,16781.0,0.94006002]
[1672727367848,0.00595913,16782.0,16781.0,2.06402262]
[1672727368104,0.00595913,16782.0,16781.0,2.07402262]
[1672727368630,0.00595913,16782.0,16781.0,2.08402262]
[1672727368871,0.00595913,16782.0,16781.0,2.71592052]
[1672727369117,0.00595913,16782.0,16781.0,2.82592052]
[1672727369636,0.00595913,16782.0,16781.0,2.17402262]
[1672727369890,0.00595913,16782.0,16781.0,3.68584662]
[1672727370141,0.00595913,16782.0,16781.0,3.69434662]
[1672727370394,0.00595913,16782.0,16781.0,5.02394662]
[1672727370646,0.00595913,16782.0,16781.0,5.16494662]
[1672727370897,0.00595913,16782.0,16781.0,5.02394662]
[1672727371142,0.00595913,16782.0,16781.0,5.16294662]
[1672727373430,1e-08,16782.0,16781.0,5.16294662]
[1672727376456,1e-08,16782.0,16781.0,5.79024662]
[1672727379458,1e-08,16782.0,16781.0,5.65124662]
[1672727379707,1e-08,16782.0,16781.0,5.79024662]
[1672727379958,1e-08,16782.0,16781.0,5.65124662]
[1672727380450,1e-08,16782.0,16781.0,5.79024662]
[1672727381201,0.01192948,16785.0,16782.0,0.5]
[1672727381456,0.01192948,16785.0,16784.0,0.16]
[1672727381732,0.01192948,16785.0,16784.0,2.61292575]
[1672727381979,0.01788754,16785.0,16784.0,2.61292575]
[1672727382526,0.01788754,16785.0,16784.0,3.31292575]
[1672727383028,0.01788754,16785.0,16784.0,2.69849175]
[1672727383283,0.01788754,16785.0,16784.0,3.31292575]
[1672727383568,0.01788754,16785.0,16784.0,3.45292575]
[1672727384308,0.01788754,16785.0,16784.0,3.54736572]
[1672727385597,0.01788754,16785.0,16784.0,2.84736572]
[1672727386138,0.01788754,16785.0,16784.0,2.23293172]
[1672727386423,0.01788754,16785.0,16784.0,2.84736572]
[1672727386699,0.01788754,16785.0,16784.0,3.54736572]
[1672727387907,0.01788754,16785.0,16784.0,2.43293172]
[1672727388420,0.01788754,16785.0,16784.0,3.04736572]
[1672727388670,0.01788754,16785.0,16784.0,2.59153172]
[1672727388933,0.01788754,16785.0,16784.0,3.20596572]
[1672727389694,0.01788754,16785.0,16784.0,2.59153172]
[1672727391775,0.59574,16786.0,16785.0,0.54044112]
[1672727392018,0.59574,16786.0,16785.0,2.14820217]
[1672727392724,0.60169771,16786.0,16785.0,2.14820217]
[1672727392989,0.60169771,16786.0,16785.0,2.12820217]
[1672727400425,0.00595771,16786.0,16785.0,2.12820217]
[1672727401209,0.00595771,16786.0,16785.0,2.74263617]
[1672727402492,0.00595771,16786.0,16785.0,2.92690203]
[1672727402785,0.00595771,16786.0,16785.0,3.02162576]
[1672727403517,0.00595771,16786.0,16785.0,2.81563124]
[1672727403785,0.00595771,16786.0,16785.0,3.45143124]
[1672727404049,0.02688635,16789.0,16787.0,0.6273]
[1672727404287,0.02688635,16789.0,16788.0,2.80390864]
[1672727404532,0.02688635,16789.0,16788.0,3.69114862]
[1672727404783,0.03879963,16789.0,16788.0,3.69026886]
[1672727405278,0.53591997,16795.0,16789.0,1.1273]
[1672727405534,0.58553172,16797.0,16793.0,0.16]
[1672727405783,0.58553172,16797.0,16791.0,0.6273]
[1672727405784,1.72676697,16795.0,16794.0,0.98999488]
[1672727406034,1.190847,16795.0,16794.0,0.24006002]
[1672727406293,1.190847,16795.0,16794.0,0.7]
[1672727406294,1.09775602,16795.0,16794.0,0.7]
[1672727407036,1.09180151,16795.0,16794.0,0.7]
[1672727407291,1.09775602,16795.0,16794.0,0.7]
[1672727407545,1.09775602,16795.0,16794.0,1.40510505]
[1672727407861,1.09775602,16795.0,16794.0,1.54710505]
[1672727408078,1.09775602,16795.0,16794.0,2.29429711]
[1672727408299,1.09180151,16795.0,16794.0,2.29429711]
[1672727409291,1.09775602,16795.0,16794.0,1.54710505]
[1672727409538,1.09180151,16795.0,16794.0,1.54710505]
[1672727410285,1.39180151,16795.0,16794.0,1.54710505]
[1672727410535,1.59598888,16795.0,16794.0,0.842]
[1672727410813,1.64237788,16795.0,16794.0,0.842]
[1672727413322,1.66032983,16795.0,16794.0,0.842]
[1672727413568,1.66032983,16795.0,16794.0,0.7]
[1672727413814,1.66032983,16795.0,16794.0,0.819]
[1672727414068,1.46032983,16795.0,16794.0,0.819]
[1672727414570,1.62002983,16795.0,16794.0,0.819]
[1672727415331,2.12002983,16795.0,16794.0,0.819]
[1672727416102,3.13434246,16795.0,16794.0,0.819]
[1672727416360,3.48309486,16795.0,16794.0,0.819]
[1672727416603,3.48309486,16795.0,16791.0,0.70223138]
[1672727416604,0.5,16794.0,16791.0,0.70223138]
[1672727416871,2.681944,16793.0,16792.0,0.7]
[1672727417119,3.047133,16793.0,16792.0,0.7]
[1672727417374,3.06508495,16793.0,16792.0,0.7]
[1672727417610,3.07699539,16793.0,16791.0,0.51534905]
[1672727417853,2.72380639,16793.0,16792.0,0.005]
[1672727418102,3.12178545,16793.0,16792.0,0.005]
[1672727418592,2.16960222,16793.0,16792.0,0.24506002]
[1672727418844,2.16960222,16793.0,16792.0,0.17018]
[1672727418845,1.25531622,16793.0,16792.0,0.17018]
[1672727419098,1.20892722,16793.0,16792.0,0.87018]
[1672727419374,0.60144122,16793.0,16792.0,1.61064042]
[1672727419620,0.01795522,16793.0,16792.0,1.61064042]
[1672727419859,0.00595522,16793.0,16792.0,1.61064042]
[1672727420104,0.00595522,16793.0,16792.0,1.73464042]
[1672727420346,0.00595522,16793.0,16792.0,1.61064042]
[1672727420590,0.00695522,16793.0,16792.0,2.29291595]
[1672727421333,0.00695522,16793.0,16792.0,1.74964042]
[1672727421580,0.00695522,16793.0,16792.0,2.36326442]
[1672727422102,0.00695522,16793.0,16792.0,2.96132611]
[1672727422602,0.00695522,16793.0,16792.0,2.36326442]
[1672727422849,0.00695522,16793.0,16792.0,3.06828777]
[1672727423093,0.00695522,16793.0,16792.0,2.36326442]
[1672727423340,0.00695522,16793.0,16792.0,2.91799249]
[1672727423843,0.00695522,16793.0,16792.0,2.36326442]
[1672727424356,0.00695522,16793.0,16792.0,3.04090825]
[1672727424607,0.00695522,16793.0,16792.0,2.36326442]
[1672727425605,0.00695522,16793.0,16792.0,2.95878542]
[1672727426103,0.00695522,16793.0,16792.0,3.45878542]
[1672727427345,0.00695522,16793.0,16792.0,3.77878542]
[1672727428643,0.0063844,16798.0,16793.0,0.00695]
[1672727428898,0.0063844,16798.0,16795.0,0.16]
[1672727429157,0.0063844,16798.0,16796.0,1.59914444]
[1672727429158,0.0013844,16798.0,16796.0,1.59914444]
[1672727429419,0.0013844,16798.0,16797.0,1.35908442]
[1672727429658,0.00733785,16798.0,16797.0,1.85908442]
[1672727429895,0.00733785,16798.0,16797.0,2.55908442]
[1672727431178,0.00733785,16798.0,16797.0,2.77835903]
[1672727431428,0.00733785,16798.0,16797.0,1.66473503]
[1672727431933,0.00733785,16798.0,16797.0,1.44552042]
[1672727431934,0.52277747,16798.0,16797.0,1.44552042]
[1672727432175,1.87339347,16798.0,16797.0,0.70006]
[1672727432436,1.91978247,16798.0,16797.0,0.70006]
[1672727432696,1.87339347,16798.0,16797.0,0.70006]
[1672727432983,1.91978247,16798.0,16797.0,0.70006]
[1672727433469,1.91978247,16798.0,16797.0,1.44552042]
[1672727433709,1.87339347,16798.0,16797.0,1.44552042]
[1672727433959,1.57339347,16798.0,16797.0,1.44552042]
[1672727434449,1.87339347,16798.0,16797.0,0.70006]
[1672727434708,1.9055581,16798.0,16797.0,0.70006]
[1672727434931,1.92351005,16798.0,16797.0,0.70006]
[1672727435438,1.87712105,16798.0,16797.0,0.70006]
[1672727435682,1.87712105,16798.0,16797.0,1.44552042]
[1672727435683,1.5591691,16798.0,16797.0,1.44552042]
[1672727437241,1.5591691,16798.0,16797.0,1.44546042]
[1672727438193,0.00733785,16798.0,16797.0,2.07585007]
[1672727438457,0.00233785,16798.0,16797.0,2.07585007]
[1672727439457,0.00233785,16798.0,16797.0,2.68947407]
[1672727439994,1e-08,16798.0,16797.0,2.68947407]
[1672727440246,0.01320538,16799.0,16797.0,2.68947407]
[1672727440507,0.01320538,16799.0,16798.0,1.93240817]
[1672727440774,0.01320538,16799.0,16798.0,2.01878417]
[1672727441027,0.02511156,16799.0,16798.0,1.27332375]
[1672727441524,0.01915847,16799.0,16798.0,1.27332375]
[1672727442019,0.01915847,16799.0,16798.0,1.27832375]
[1672727442278,0.01915847,16799.0,16798.0,2.02378417]
[1672727443061,0.01915847,16799.0,16798.0,1.45046042]
[1672727443309,1.25192899,16802.0,16799.0,0.69689816]
[1672727443310,0.25906044,16802.0,16799.0,0.69689816]
[1672727443545,0.00595309,16799.0,16798.0,0.85156002]
[1672727443793,0.00595309,16799.0,16798.0,1.37138634]
[1672727444050,0.00595309,16799.0,16798.0,2.61812882]
[1672727444569,0.00595309,16799.0,16798.0,2.68501034]
[1672727444812,0.00595309,16799.0,16798.0,2.68001034]
[1672727445610,0.00595309,16799.0,16798.0,2.68519739]
[1672727446854,0.00595309,16799.0,16798.0,3.20666565]
[1672727447354,0.00595309,16799.0,16798.0,4.22237341]
[1672727447606,0.00595309,16799.0,16798.0,3.98231339]
[1672727448391,0.00595309,16799.0,16798.0,3.97731339]
[1672727448629,0.00595309,16799.0,16798.0,4.00531339]
[1672727448877,0.37195866,16803.0,16799.0,0.51785927]
[1672727449132,0.37195866,16803.0,16800.0,1.73232554]
[1672727449409,0.65806836,16804.0,16800.0,1.73232554]
[1672727449410,0.06294536,16804.0,16801.0,1.62582554]
[1672727449689,0.06294536,16804.0,16802.0,1.73122554]
[1672727449943,0.06294536,16804.0,16803.0,1.27214152]
[1672727450198,0.06294536,16804.0,16803.0,1.96214152]
[1672727450463,0.1065,16808.0,16807.0,0.5]
[1672727450746,0.42445195,16808.0,16807.0,0.74006002]
[1672727451010,0.47084095,16808.0,16807.0,0.74006002]
[1672727451274,0.47679086,16808.0,16807.0,0.5]
[1672727451536,0.47179086,16808.0,16807.0,0.508]
[1672727451807,2.68692388,16808.0,16807.0,0.508]
[1672727452613,2.66897193,16808.0,16807.0,0.508]
[1672727453657,3.26392993,16808.0,16807.0,0.508]
[1672727453674,3.53174692,16808.0,16807.0,0.508]
[1672727453937,3.32299036,16808.0,16807.0,0.508]
[1672727454204,4.12897036,16808.0,16807.0,0.167307]
[1672727454454,0.5,16807.0,16803.0,1.36919403]
[1672727454713,0.11244991,16804.0,16803.0,1.36919403]
[1672727454990,0.15883891,16804.0,16803.0,0.7]
[1672727455248,1.56113091,16804.0,16803.0,0.7]
[1672727455507,2.14536431,16804.0,16803.0,0.7]
[1672727455762,2.14536431,16804.0,16803.0,0.001]
[1672727456333,2.64536431,16804.0,16803.0,0.001]
[1672727456870,2.66236431,16804.0,16803.0,0.001]
[1672727457128,2.64536431,16804.0,16799.0,0.79748536]
[1672727457433,0.1065,16801.0,16800.0,0.57516421]
[1672727457686,0.15883891,16801.0,16799.0,0.02232376]
[1672727457939,0.2121,16800.0,16799.0,0.02232376]
[1672727458194,0.558489,16800.0,16799.0,0.02232376]
[1672727458465,2.71751087,16800.0,16799.0,0.02232376]
[1672727459285,2.21751087,16800.0,16799.0,0.02232376]
[1672727460071,2.3474889,16800.0,16799.0,0.02232376]
[1672727460345,2.39078683,16800.0,16799.0,0.02232376]
[1672727460653,1.96986686,16800.0,16799.0,0.02232376]
[1672727460911,2.26986686,16800.0,16799.0,0.02232376]
[1672727461167,2.85364711,16800.0,16799.0,0.02232376]
[1672727461474,2.77164711,16800.0,16799.0,0.02232376]
[1672727461737,2.90564711,16800.0,16799.0,0.02232376]
[1672727462510,2.37132329,16800.0,16799.0,0.02232376]
[1672727462751,2.77178461,16800.0,16799.0,0.02232376]
[1672727463010,2.36932329,16800.0,16799.0,0.02232376]
[1672727463774,3.02030406,16800.0,16799.0,0.02232376]
[1672727464511,2.78933092,16800.0,16799.0,0.02232376]
[1672727464756,2.92333092,16800.0,16799.0,0.02232376]
[1672727465007,10.42333092,16800.0,16799.0,0.02232376]
[1672727465250,10.42333092,16800.0,16799.0,0.09666093]
[1672727466044,10.42333092,16800.0,16799.0,0.09672093]
[1672727466809,10.92333092,16800.0,16799.0,0.09672093]
[1672727467064,10.32186686,16800.0,16799.0,0.09666093]
[1672727467319,10.92289519,16800.0,16799.0,9.3e-07]
[1672727467573,10.92289408,16800.0,16795.0,0.65065083]
[1672727467824,0.44520567,16796.0,16795.0,0.89071085]
[1672727468074,0.79754458,16796.0,16795.0,0.00015]
[1672727468328,0.35233891,16796.0,16795.0,0.51075407]
[1672727468585,0.30594991,16796.0,16795.0,0.51075407]
[1672727468841,1.49670791,16796.0,16795.0,1.21060407]
[1672727469161,1.98830258,16796.0,16795.0,1.21060407]
[1672727469366,1.54309691,16796.0,16795.0,1.21060407]
[1672727469616,1.56009691,16796.0,16795.0,1.21060407]
[1672727470123,1.75891358,16796.0,16795.0,1.21060407]
[1672727470412,2.35429258,16796.0,16795.0,0.7]
[1672727470686,2.40068158,16796.0,16795.0,0.7]
[1672727470942,2.4429671,16796.0,16795.0,0.7]
[1672727471195,2.5494671,16796.0,16795.0,0.7]
[1672727471449,2.50356009,16796.0,16795.0,0.7]
[1672727471711,3.00356009,16796.0,16795.0,0.7]
[1672727471991,3.00356009,16796.0,16794.0,0.7]
[1672727472257,1.30719274,16795.0,16794.0,0.7]
[1672727472503,2.85036165,16795.0,16794.0,0.7]
[1672727473018,2.40553235,16795.0,16793.0,1.99726944]
[1672727473259,0.4065,16794.0,16793.0,1.99726944]
[1672727473506,1.643789,16794.0,16793.0,2.69726944]
[1672727473754,1.64973891,16794.0,16793.0,0.72145689]
[1672727474010,2.1300543,16794.0,16793.0,0.02145689]
[1672727474262,2.1300543,16794.0,16793.0,0.69195317]
[1672727474263,1.9170543,16794.0,16793.0,0.69195317]
[1672727474530,1.54323891,16794.0,16793.0,0.69195317]
[1672727475028,1.56023891,16794.0,16793.0,0.69195317]
[1672727475274,1.54323891,16794.0,16793.0,0.69195317]
[1672727475530,1.54323891,16794.0,16793.0,1.39195317]
[1672727475531,1.62523891,16794.0,16793.0,1.39195317]
[1672727475799,1.84069947,16794.0,16793.0,0.72145689]
[1672727476048,1.62523891,16794.0,16793.0,0.72145689]
[1672727476295,1.54323891,16794.0,16793.0,0.72145689]
[1672727476541,1.56023891,16794.0,16793.0,0.72145689]
[1672727476755,1.70929058,16794.0,16793.0,0.72145689]